[Event "Early-Titled-Tuesday-Blitz-October-24-2023"]
[Site "Chess.com"]
[Date "2023.10.24"]
[Round "2"]
[White "ketster"]
[Black "LaPiToB"]
[Result "1-0"]
[WhiteElo "2521"]
[BlackElo "2284"]
[TimeControl "180+1"]
[EndTime "8:17:24 PDT"]
[Termination "ketster won on time"]

1. Nf3 {[%clk 0:02:51.9]} 1... Nf6 {[%clk 0:02:59.8]} 2. b3 {[%clk 0:02:52.4]}
2... d5 {[%clk 0:02:50.8]} 3. Bb2 {[%clk 0:02:53.3]} 3... c5 {[%clk 0:02:50.7]}
4. e3 {[%clk 0:02:51.9]} 4... Nc6 {[%clk 0:02:50.8]} 5. d4 {[%clk 0:02:40.5]}
5... Bg4 {[%clk 0:02:48.9]} 6. Be2 {[%clk 0:02:40.4]} 6... e6 {[%clk 0:02:34.7]}
7. dxc5 {[%clk 0:02:35.1]} 7... Bxc5 {[%clk 0:02:32.3]} 8. O-O {[%clk
0:02:35.7]} 8... O-O {[%clk 0:02:30.7]} 9. h3 {[%clk 0:02:20.6]} 9... Bh5 {[%clk
0:02:27.7]} 10. Nbd2 {[%clk 0:02:20]} 10... Rc8 {[%clk 0:02:25.1]} 11. c4 {[%clk
0:02:17]} 11... dxc4 {[%clk 0:02:17.8]} 12. Nxc4 {[%clk 0:02:15.9]} 12... Qe7
{[%clk 0:02:15.4]} 13. Nfe5 {[%clk 0:02:04.5]} 13... Bxe2 {[%clk 0:02:10.9]} 14.
Qxe2 {[%clk 0:02:03]} 14... Nxe5 {[%clk 0:01:58.8]} 15. Nxe5 {[%clk 0:02:03.9]}
15... Rfd8 {[%clk 0:01:56.1]} 16. Rfd1 {[%clk 0:02:00.4]} 16... Ba3 {[%clk
0:01:44.1]} 17. Bd4 {[%clk 0:01:56.8]} 17... a6 {[%clk 0:01:37.8]} 18. Nc4
{[%clk 0:01:48.6]} 18... Nd5 {[%clk 0:01:02.1]} 19. Qg4 {[%clk 0:01:37.3]} 19...
f5 {[%clk 0:00:52.3]} 20. Qxg7+ {[%clk 0:01:04.9]} 20... Qxg7 {[%clk 0:00:50.3]}
21. Bxg7 {[%clk 0:01:05.8]} 21... Kxg7 {[%clk 0:00:50.1]} 22. Nxa3 {[%clk
0:01:05.1]} 22... Nc3 {[%clk 0:00:45.7]} 23. Rxd8 {[%clk 0:01:03.6]} 23... Rxd8
{[%clk 0:00:46.6]} 24. Nc4 {[%clk 0:01:02]} 24... b5 {[%clk 0:00:45]} 25. Ne5
{[%clk 0:00:55.1]} 25... Rd2 {[%clk 0:00:41.7]} 26. a4 {[%clk 0:00:51.4]} 26...
Kf6 {[%clk 0:00:28.2]} 27. Nf3 {[%clk 0:00:48]} 27... Rb2 {[%clk 0:00:28.1]} 28.
axb5 {[%clk 0:00:42.6]} 28... axb5 {[%clk 0:00:27.8]} 29. Nd4 {[%clk 0:00:36.5]}
29... e5 {[%clk 0:00:14.4]} 30. Ra6+ {[%clk 0:00:34.6]} 30... Kf7 {[%clk
0:00:12.1]} 31. Nxf5 {[%clk 0:00:31.6]} 31... Rxb3 {[%clk 0:00:12.4]} 32. Nd6+
{[%clk 0:00:25.8]} 32... Kg7 {[%clk 0:00:10.5]} 33. Rb6 {[%clk 0:00:23.3]} 33...
Rb1+ {[%clk 0:00:10]} 34. Kh2 {[%clk 0:00:23.3]} 34... Ne2 {[%clk 0:00:10.5]}
35. Rxb5 {[%clk 0:00:19.4]} 35... Rf1 {[%clk 0:00:09.6]} 36. Ne4 {[%clk
0:00:08.7]} 36... h5 {[%clk 0:00:06]} 37. Rxe5 {[%clk 0:00:08.3]} 37... h4
{[%clk 0:00:06.6]} 38. g3 {[%clk 0:00:06.1]} 38... Ng1 {[%clk 0:00:05.1]} 39.
Kg2 {[%clk 0:00:05.3]} 39... Ra1 {[%clk 0:00:02.1]} 40. gxh4 {[%clk 0:00:05.5]}
40... Ne2 {[%clk 0:00:01.4]} 41. Ng5 {[%clk 0:00:04.6]} 41... Kh6 {[%clk
0:00:01.5]} 42. Re6+ {[%clk 0:00:04.6]} 42... Kh5 {[%clk 0:00:02]} 43. Re4
{[%clk 0:00:03.8]} 43... Rg1+ {[%clk 0:00:02]} 44. Kf3 {[%clk 0:00:04]} 1-0

[Event "Early-Titled-Tuesday-Blitz-October-24-2023"]
[Site "Chess.com"]
[Date "2023.10.24"]
[Round "2"]
[White "chess123456s"]
[Black "Byniolus"]
[Result "0-1"]
[WhiteElo "2539"]
[BlackElo "2807"]
[TimeControl "180+1"]
[EndTime "8:17:26 PDT"]
[Termination "Byniolus won by resignation"]

1. e4 {[%clk 0:02:55.9]} 1... d6 {[%clk 0:03:00.2]} 2. d4 {[%clk 0:02:55.8]}
2... Nf6 {[%clk 0:03:01]} 3. Nc3 {[%clk 0:02:56.1]} 3... c6 {[%clk 0:03:01.7]}
4. a4 {[%clk 0:02:55.2]} 4... Nbd7 {[%clk 0:03:00.2]} 5. Nge2 {[%clk 0:02:54.3]}
5... e5 {[%clk 0:02:59.8]} 6. g3 {[%clk 0:02:54.7]} 6... b6 {[%clk 0:03:00]} 7.
Bg2 {[%clk 0:02:54.9]} 7... a6 {[%clk 0:03:00.7]} 8. O-O {[%clk 0:02:54.8]} 8...
Bb7 {[%clk 0:03:01.1]} 9. h3 {[%clk 0:02:54.2]} 9... b5 {[%clk 0:03:01.4]} 10.
Be3 {[%clk 0:02:52.6]} 10... Be7 {[%clk 0:02:58.8]} 11. Qd2 {[%clk 0:02:51.1]}
11... O-O {[%clk 0:02:58.6]} 12. g4 {[%clk 0:02:48]} 12... b4 {[%clk 0:02:58.6]}
13. Nd1 {[%clk 0:02:46.7]} 13... exd4 {[%clk 0:02:45.8]} 14. Bxd4 {[%clk
0:02:02]} 14... c5 {[%clk 0:02:41.9]} 15. Bxf6 {[%clk 0:02:01.1]} 15... Nxf6
{[%clk 0:02:33.9]} 16. Ng3 {[%clk 0:02:00.6]} 16... Re8 {[%clk 0:02:22.6]} 17.
Ne3 {[%clk 0:01:57.4]} 17... Bf8 {[%clk 0:02:12.9]} 18. Nd5 {[%clk 0:01:56.7]}
18... Bxd5 {[%clk 0:01:39.4]} 19. exd5 {[%clk 0:01:57.6]} 19... g6 {[%clk
0:01:30.1]} 20. Rfe1 {[%clk 0:01:49.6]} 20... Bg7 {[%clk 0:01:25.5]} 21. c3
{[%clk 0:01:48.8]} 21... Rb8 {[%clk 0:01:18.4]} 22. Rab1 {[%clk 0:01:43]} 22...
Kf8 {[%clk 0:01:07.2]} 23. Qf4 {[%clk 0:01:38.2]} 23... Qd7 {[%clk 0:00:57.4]}
24. g5 {[%clk 0:01:30.3]} 24... Rxe1+ {[%clk 0:00:54]} 25. Rxe1 {[%clk
0:01:31.2]} 25... Ne8 {[%clk 0:00:54.6]} 26. Ne4 {[%clk 0:01:17]} 26... Rc8
{[%clk 0:00:13.3]} 27. Nf6 {[%clk 0:01:14.8]} 27... Bxf6 {[%clk 0:00:04.4]} 28.
gxf6 {[%clk 0:01:15.7]} 28... Kg8 {[%clk 0:00:04.9]} 29. Re7 {[%clk 0:01:12.5]}
29... Qf5 {[%clk 0:00:05.2]} 30. Qxf5 {[%clk 0:00:52]} 30... gxf5 {[%clk
0:00:06.1]} 31. Bf1 {[%clk 0:00:49.4]} 31... a5 {[%clk 0:00:05]} 32. Bd3 {[%clk
0:00:43.2]} 32... Nxf6 {[%clk 0:00:04.4]} 33. c4 {[%clk 0:00:38.6]} 33... f4
{[%clk 0:00:04.1]} 34. Ra7 {[%clk 0:00:35.8]} 34... Re8 {[%clk 0:00:04.1]} 35.
Kf1 {[%clk 0:00:36.2]} 35... f3 {[%clk 0:00:03.3]} 36. Rxa5 {[%clk 0:00:34.6]}
36... Nd7 {[%clk 0:00:02.9]} 37. b3 {[%clk 0:00:27]} 37... Ne5 {[%clk
0:00:03.8]} 38. Be4 {[%clk 0:00:27.3]} 38... Kg7 {[%clk 0:00:04.7]} 39. Ra6
{[%clk 0:00:26.7]} 39... Nxc4 {[%clk 0:00:04.5]} 40. bxc4 {[%clk 0:00:25.6]}
40... Rxe4 {[%clk 0:00:05]} 41. Rxd6 {[%clk 0:00:25.8]} 41... Rxc4 {[%clk
0:00:05.9]} 42. Ke1 {[%clk 0:00:25.1]} 42... Rc2 {[%clk 0:00:04.5]} 43. Rb6
{[%clk 0:00:23.5]} 43... Ra2 {[%clk 0:00:03.8]} 44. Rb5 {[%clk 0:00:20.3]} 44...
Kf6 {[%clk 0:00:03.7]} 45. a5 {[%clk 0:00:17.8]} 45... Ke5 {[%clk 0:00:03.5]}
46. Rxc5 {[%clk 0:00:16.9]} 46... b3 {[%clk 0:00:03.8]} 47. Kd1 {[%clk
0:00:16.8]} 47... Ra1+ {[%clk 0:00:03.4]} 48. Rc1 {[%clk 0:00:16.6]} 48... b2
{[%clk 0:00:04.3]} 0-1

[Event "Early-Titled-Tuesday-Blitz-October-24-2023"]
[Site "Chess.com"]
[Date "2023.10.24"]
[Round "2"]
[White "ProfessorChess101"]
[Black "krzyzan94"]
[Result "0-1"]
[WhiteElo "2528"]
[BlackElo "2774"]
[TimeControl "180+1"]
[EndTime "8:17:26 PDT"]
[Termination "krzyzan94 won by resignation"]

1. e4 {[%clk 0:02:56.5]} 1... c5 {[%clk 0:02:56.9]} 2. Nc3 {[%clk 0:02:54.5]}
2... a6 {[%clk 0:02:51.4]} 3. Nge2 {[%clk 0:02:47.5]} 3... d6 {[%clk 0:02:45.2]}
4. g3 {[%clk 0:02:42.3]} 4... Nc6 {[%clk 0:02:39]} 5. Bg2 {[%clk 0:02:41.4]}
5... g6 {[%clk 0:02:25.7]} 6. d4 {[%clk 0:02:36.9]} 6... cxd4 {[%clk 0:02:25.8]}
7. Nxd4 {[%clk 0:02:36.3]} 7... Bg7 {[%clk 0:02:09.1]} 8. Be3 {[%clk 0:02:34.8]}
8... Nxd4 {[%clk 0:02:03.4]} 9. Bxd4 {[%clk 0:02:34.6]} 9... Nf6 {[%clk
0:02:04.3]} 10. O-O {[%clk 0:02:32.7]} 10... O-O {[%clk 0:02:04.1]} 11. h3
{[%clk 0:02:31.8]} 11... e5 {[%clk 0:01:58.4]} 12. Be3 {[%clk 0:02:29.1]} 12...
Be6 {[%clk 0:01:59.3]} 13. a4 {[%clk 0:02:27.2]} 13... Rc8 {[%clk 0:01:59]} 14.
Qd2 {[%clk 0:02:26.5]} 14... Qd7 {[%clk 0:01:32]} 15. Kh2 {[%clk 0:02:25.9]}
15... Qc6 {[%clk 0:01:27.1]} 16. Rfd1 {[%clk 0:02:17.4]} 16... Rfd8 {[%clk
0:01:20.2]} 17. a5 {[%clk 0:02:15.4]} 17... Rd7 {[%clk 0:01:13.5]} 18. Qe2
{[%clk 0:01:49.8]} 18... h5 {[%clk 0:01:08.2]} 19. Rd2 {[%clk 0:01:41]} 19...
Bc4 {[%clk 0:00:51.4]} 20. Qe1 {[%clk 0:01:34.1]} 20... Be6 {[%clk 0:00:50.7]}
21. Na4 {[%clk 0:01:12.6]} 21... d5 {[%clk 0:00:29.3]} 22. Nb6 {[%clk
0:01:05.1]} 22... d4 {[%clk 0:00:29.5]} 23. Bg5 {[%clk 0:01:05.2]} 23... Nh7
{[%clk 0:00:30.2]} 24. f4 {[%clk 0:00:53.6]} 24... f6 {[%clk 0:00:24.8]} 25. Bh4
{[%clk 0:00:53.4]} 25... g5 {[%clk 0:00:22.9]} 26. fxg5 {[%clk 0:00:41.3]} 26...
fxg5 {[%clk 0:00:23.8]} 27. Bxg5 {[%clk 0:00:36.3]} 27... Nxg5 {[%clk
0:00:24.7]} 28. Nxc8 {[%clk 0:00:35.8]} 28... Qxc8 {[%clk 0:00:24.4]} 29. Qe2
{[%clk 0:00:34.9]} 29... Bf7 {[%clk 0:00:23.7]} 30. h4 {[%clk 0:00:29.3]} 30...
Ne6 {[%clk 0:00:23.6]} 31. Bh3 {[%clk 0:00:28.8]} 31... Qe8 {[%clk 0:00:21.8]}
32. Rf1 {[%clk 0:00:27.7]} 32... Rc7 {[%clk 0:00:19.5]} 33. Rd3 {[%clk
0:00:21.4]} 33... Bg6 {[%clk 0:00:17.1]} 34. Rdf3 {[%clk 0:00:18.5]} 34... d3
{[%clk 0:00:17.6]} 35. Qxd3 {[%clk 0:00:16.1]} 35... Nd4 {[%clk 0:00:18]} 36.
R3f2 {[%clk 0:00:16.7]} 36... Kh7 {[%clk 0:00:17.1]} 37. Bf5 {[%clk 0:00:15.8]}
37... Bxf5 {[%clk 0:00:17.5]} 38. exf5 {[%clk 0:00:16.7]} 38... Bf6 {[%clk
0:00:18.3]} 39. Qe4 {[%clk 0:00:14.7]} 39... Qc6 {[%clk 0:00:16.9]} 40. Qd3
{[%clk 0:00:07.2]} 40... e4 {[%clk 0:00:17.1]} 41. Qd1 {[%clk 0:00:06.3]} 41...
Nf3+ {[%clk 0:00:17.5]} 42. Kh3 {[%clk 0:00:04.3]} 42... Rd7 {[%clk 0:00:17.1]}
43. Qe2 {[%clk 0:00:03.9]} 43... Bd4 {[%clk 0:00:16.2]} 44. Rxf3 {[%clk
0:00:03.9]} 44... exf3 {[%clk 0:00:17.1]} 45. Rxf3 {[%clk 0:00:04.3]} 45... Bf6
{[%clk 0:00:16.6]} 46. Kh2 {[%clk 0:00:03.7]} 46... Re7 {[%clk 0:00:15]} 47. Qf2
{[%clk 0:00:02.7]} 47... Qc4 {[%clk 0:00:13.6]} 48. Rc3 {[%clk 0:00:02.8]} 48...
Qe2 {[%clk 0:00:13.3]} 49. Qxe2 {[%clk 0:00:03]} 49... Rxe2+ {[%clk 0:00:14.2]}
50. Kh3 {[%clk 0:00:03.6]} 50... Bxc3 {[%clk 0:00:14.8]} 0-1

[Event "Early-Titled-Tuesday-Blitz-October-24-2023"]
[Site "Chess.com"]
[Date "2023.10.24"]
[Round "2"]
[White "milovichalex"]
[Black "lamomiajunior"]
[Result "0-1"]
[WhiteElo "2317"]
[BlackElo "2663"]
[TimeControl "180+1"]
[EndTime "8:17:28 PDT"]
[Termination "lamomiajunior won on time"]

1. e4 {[%clk 0:03:00.9]} 1... c6 {[%clk 0:03:00]} 2. Nf3 {[%clk 0:02:59.1]} 2...
d5 {[%clk 0:02:59.6]} 3. exd5 {[%clk 0:02:59.2]} 3... cxd5 {[%clk 0:02:59.9]} 4.
d4 {[%clk 0:02:59.4]} 4... Nf6 {[%clk 0:03:00.5]} 5. Bd3 {[%clk 0:02:45.7]} 5...
Nc6 {[%clk 0:03:00.5]} 6. c3 {[%clk 0:02:44.6]} 6... Bg4 {[%clk 0:03:00.8]} 7.
h3 {[%clk 0:02:43.9]} 7... Bh5 {[%clk 0:02:56.9]} 8. Nbd2 {[%clk 0:02:27.9]}
8... e6 {[%clk 0:02:56]} 9. O-O {[%clk 0:02:24.9]} 9... Bd6 {[%clk 0:02:56.6]}
10. Re1 {[%clk 0:02:21.9]} 10... O-O {[%clk 0:02:57.1]} 11. Nf1 {[%clk
0:02:22.1]} 11... Qc7 {[%clk 0:02:52.4]} 12. Bg5 {[%clk 0:02:20.9]} 12... Nd7
{[%clk 0:02:50.5]} 13. Be3 {[%clk 0:02:11.2]} 13... f6 {[%clk 0:02:39.4]} 14.
Ng3 {[%clk 0:02:01.6]} 14... Bxg3 {[%clk 0:02:37.3]} 15. fxg3 {[%clk 0:02:01.8]}
15... Qxg3 {[%clk 0:02:36.6]} 16. Bf2 {[%clk 0:02:01.7]} 16... Qd6 {[%clk
0:02:34.8]} 17. c4 {[%clk 0:01:44.2]} 17... Rae8 {[%clk 0:02:31.1]} 18. a3
{[%clk 0:01:39.4]} 18... Kh8 {[%clk 0:02:26]} 19. cxd5 {[%clk 0:01:25.3]} 19...
Qxd5 {[%clk 0:02:22.7]} 20. Be4 {[%clk 0:01:23.1]} 20... Qd6 {[%clk 0:02:22.9]}
21. d5 {[%clk 0:01:19.5]} 21... exd5 {[%clk 0:02:15.7]} 22. Qxd5 {[%clk
0:01:18.5]} 22... Qxd5 {[%clk 0:02:01.9]} 23. Bxd5 {[%clk 0:01:18.5]} 23... Bxf3
{[%clk 0:01:59.1]} 24. Bxf3 {[%clk 0:01:15.6]} 24... Nde5 {[%clk 0:01:59.8]} 25.
Bh5 {[%clk 0:01:11.6]} 25... g6 {[%clk 0:01:58.4]} 26. Be2 {[%clk 0:01:08.4]}
26... Rd8 {[%clk 0:01:58.4]} 27. Red1 {[%clk 0:01:07.5]} 27... Kg7 {[%clk
0:01:58.1]} 28. b4 {[%clk 0:01:04.5]} 28... a6 {[%clk 0:01:49.2]} 29. Bb6 {[%clk
0:01:03.3]} 29... Rxd1+ {[%clk 0:01:48]} 30. Rxd1 {[%clk 0:01:03.1]} 30... Re8
{[%clk 0:01:43.1]} 31. Kf2 {[%clk 0:00:59.6]} 31... Kf7 {[%clk 0:01:41.2]} 32.
Rd2 {[%clk 0:00:51.4]} 32... h5 {[%clk 0:01:40.3]} 33. Bd1 {[%clk 0:00:51.6]}
33... h4 {[%clk 0:01:28.3]} 34. Bb3+ {[%clk 0:00:46.9]} 34... Kg7 {[%clk
0:01:28.9]} 35. Rd6 {[%clk 0:00:41.8]} 35... g5 {[%clk 0:01:26.7]} 36. Bc2
{[%clk 0:00:27.4]} 36... Re7 {[%clk 0:01:01]} 37. Bc5 {[%clk 0:00:26.9]} 37...
Rd7 {[%clk 0:00:55.5]} 38. Bf5 {[%clk 0:00:20.3]} 38... Rxd6 {[%clk 0:00:55.1]}
39. Bxd6 {[%clk 0:00:20.5]} 39... Nc4 {[%clk 0:00:55.8]} 40. Bc5 {[%clk
0:00:17.7]} 40... Nxa3 {[%clk 0:00:54.3]} 41. Bc8 {[%clk 0:00:17.8]} 41... Nc2
{[%clk 0:00:41.8]} 42. Bxb7 {[%clk 0:00:17.5]} 42... N2xb4 {[%clk 0:00:42.5]}
43. Ke3 {[%clk 0:00:15.2]} 43... a5 {[%clk 0:00:42.9]} 44. Kd2 {[%clk
0:00:14.6]} 44... Ne5 {[%clk 0:00:38.9]} 45. Kc3 {[%clk 0:00:12.6]} 45... Nbc6
{[%clk 0:00:35.4]} 46. Bb6 {[%clk 0:00:09]} 46... Kf7 {[%clk 0:00:34.3]} 47. Ba6
{[%clk 0:00:07]} 47... Ke6 {[%clk 0:00:34.2]} 48. Be2 {[%clk 0:00:07.1]} 48...
Kd6 {[%clk 0:00:33.6]} 49. Bd1 {[%clk 0:00:06.2]} 49... Nd7 {[%clk 0:00:30.6]}
50. Be3 {[%clk 0:00:05.7]} 50... Nc5 {[%clk 0:00:30.3]} 51. Bc2 {[%clk
0:00:04.1]} 51... Ne5 {[%clk 0:00:27.6]} 52. Kd4 {[%clk 0:00:01.5]} 52... a4
{[%clk 0:00:24.9]} 53. Bc1 {[%clk 0:00:01.4]} 53... Nb3+ {[%clk 0:00:24.8]} 0-1

[Event "Early-Titled-Tuesday-Blitz-October-24-2023"]
[Site "Chess.com"]
[Date "2023.10.24"]
[Round "2"]
[White "HamedWafa4"]
[Black "FairChess_on_YouTube"]
[Result "0-1"]
[WhiteElo "2624"]
[BlackElo "3092"]
[TimeControl "180+1"]
[EndTime "8:17:31 PDT"]
[Termination "FairChess_on_YouTube won by resignation"]

1. d4 {[%clk 0:02:59.6]} 1... Nf6 {[%clk 0:02:59.3]} 2. Nf3 {[%clk 0:02:59.3]}
2... e6 {[%clk 0:02:58]} 3. Bf4 {[%clk 0:02:57.8]} 3... b6 {[%clk 0:02:56.8]} 4.
e3 {[%clk 0:02:57.1]} 4... Bb7 {[%clk 0:02:57.4]} 5. Nbd2 {[%clk 0:02:56.9]}
5... Nh5 {[%clk 0:02:56.3]} 6. Bg5 {[%clk 0:02:52.5]} 6... Be7 {[%clk
0:02:56.4]} 7. Bxe7 {[%clk 0:02:42.3]} 7... Qxe7 {[%clk 0:02:57.3]} 8. Bd3
{[%clk 0:02:41.9]} 8... d6 {[%clk 0:02:57.2]} 9. O-O {[%clk 0:02:40]} 9... Nd7
{[%clk 0:02:56.9]} 10. Be4 {[%clk 0:02:37.1]} 10... d5 {[%clk 0:02:54.2]} 11.
Bd3 {[%clk 0:02:37.1]} 11... Nhf6 {[%clk 0:02:43.9]} 12. c3 {[%clk 0:02:29.1]}
12... O-O {[%clk 0:02:42.2]} 13. Ne5 {[%clk 0:02:21.7]} 13... Nxe5 {[%clk
0:02:41.8]} 14. dxe5 {[%clk 0:02:21.6]} 14... Ne4 {[%clk 0:02:30.1]} 15. Qc2
{[%clk 0:02:12.5]} 15... f5 {[%clk 0:02:21.2]} 16. exf6 {[%clk 0:02:09.1]} 16...
Nxf6 {[%clk 0:02:21.1]} 17. e4 {[%clk 0:02:09]} 17... Kh8 {[%clk 0:02:12.1]} 18.
exd5 {[%clk 0:02:08.7]} 18... exd5 {[%clk 0:02:10.3]} 19. Rae1 {[%clk
0:02:08.8]} 19... Qf7 {[%clk 0:02:10.1]} 20. Nf3 {[%clk 0:02:08.3]} 20... Rae8
{[%clk 0:02:08.9]} 21. Ng5 {[%clk 0:01:55.2]} 21... Qh5 {[%clk 0:02:05.9]} 22.
Ne6 {[%clk 0:01:52.6]} 22... Rf7 {[%clk 0:01:50.6]} 23. Nf4 {[%clk 0:01:44.3]}
23... Qh6 {[%clk 0:01:44.6]} 24. g3 {[%clk 0:01:35.3]} 24... Ref8 {[%clk
0:01:34.8]} 25. Bf5 {[%clk 0:01:27.7]} 25... Ne4 {[%clk 0:01:30.2]} 26. Bxe4
{[%clk 0:01:14.9]} 26... dxe4 {[%clk 0:01:31.1]} 27. Re2 {[%clk 0:00:57.6]}
27... Qc6 {[%clk 0:01:00.4]} 28. Re3 {[%clk 0:00:54.7]} 28... g5 {[%clk
0:00:55.6]} 29. Ne2 {[%clk 0:00:47.2]} 29... Qh6 {[%clk 0:00:48.3]} 30. c4
{[%clk 0:00:36.9]} 30... Kg8 {[%clk 0:00:38.9]} 31. Nc3 {[%clk 0:00:34.4]} 31...
Rf3 {[%clk 0:00:32.8]} 32. Qd2 {[%clk 0:00:13]} 32... Qh3 {[%clk 0:00:30.1]} 33.
Nd5 {[%clk 0:00:11.5]} 33... h6 {[%clk 0:00:17.9]} 34. Ne7+ {[%clk 0:00:09.4]}
34... Kh7 {[%clk 0:00:16.5]} 35. Nd5 {[%clk 0:00:07]} 35... c6 {[%clk
0:00:16.3]} 36. Nc3 {[%clk 0:00:06.9]} 36... Rxe3 {[%clk 0:00:16.4]} 37. Qxe3
{[%clk 0:00:07]} 37... c5 {[%clk 0:00:17]} 38. Nd5 {[%clk 0:00:06.4]} 38... Qf5
{[%clk 0:00:17]} 39. Re1 {[%clk 0:00:06.5]} 39... Re8 {[%clk 0:00:15.1]} 40. Qd2
{[%clk 0:00:06.2]} 40... Kg6 {[%clk 0:00:12.1]} 41. Ne3 {[%clk 0:00:06.4]} 41...
Qf6 {[%clk 0:00:10.5]} 42. Rd1 {[%clk 0:00:06.9]} 42... Rf8 {[%clk 0:00:09.9]}
43. b3 {[%clk 0:00:06.7]} 43... Bc8 {[%clk 0:00:09.7]} 44. Qd6 {[%clk
0:00:07.1]} 44... Kh5 {[%clk 0:00:06.9]} 45. Qxf6 {[%clk 0:00:07.5]} 45... Rxf6
{[%clk 0:00:07.8]} 46. Rd8 {[%clk 0:00:07.9]} 46... Bh3 {[%clk 0:00:07.6]} 47.
Rd7 {[%clk 0:00:06.9]} 47... Bxd7 {[%clk 0:00:06.7]} 0-1

[Event "Early-Titled-Tuesday-Blitz-October-24-2023"]
[Site "Chess.com"]
[Date "2023.10.24"]
[Round "2"]
[White "venturov"]
[Black "AsselLesbekova"]
[Result "1-0"]
[WhiteElo "2473"]
[BlackElo "2223"]
[TimeControl "180+1"]
[EndTime "8:17:34 PDT"]
[Termination "venturov won by resignation"]

1. e4 {[%clk 0:03:00.9]} 1... e5 {[%clk 0:02:49.2]} 2. Nf3 {[%clk 0:02:59.7]}
2... Nf6 {[%clk 0:02:49]} 3. Nxe5 {[%clk 0:02:59.5]} 3... Nxe4 {[%clk
0:02:49.3]} 4. Nf3 {[%clk 0:02:52.3]} 4... d5 {[%clk 0:02:46.8]} 5. c4 {[%clk
0:02:41.4]} 5... Nc6 {[%clk 0:02:31.9]} 6. Be2 {[%clk 0:02:34.1]} 6... Bc5
{[%clk 0:02:28.8]} 7. O-O {[%clk 0:02:33.3]} 7... O-O {[%clk 0:02:26.5]} 8. d3
{[%clk 0:02:29.7]} 8... Nf6 {[%clk 0:02:20.4]} 9. d4 {[%clk 0:02:28.7]} 9... Be7
{[%clk 0:02:14.4]} 10. h3 {[%clk 0:02:26]} 10... h6 {[%clk 0:02:10.5]} 11. Nc3
{[%clk 0:02:26]} 11... Be6 {[%clk 0:02:08.5]} 12. c5 {[%clk 0:02:24.6]} 12... b6
{[%clk 0:02:06.9]} 13. cxb6 {[%clk 0:02:18.5]} 13... axb6 {[%clk 0:02:07.8]} 14.
Bf4 {[%clk 0:02:17.9]} 14... Bd6 {[%clk 0:01:44.7]} 15. Bxd6 {[%clk 0:02:17.6]}
15... Qxd6 {[%clk 0:01:45.6]} 16. Rc1 {[%clk 0:02:17.8]} 16... Ne4 {[%clk
0:01:37.9]} 17. a3 {[%clk 0:02:11.5]} 17... Rfe8 {[%clk 0:01:30.4]} 18. Bb5
{[%clk 0:02:08.1]} 18... Na7 {[%clk 0:01:16.3]} 19. Bxe8 {[%clk 0:02:06.2]}
19... Rxe8 {[%clk 0:01:17.2]} 20. Ne5 {[%clk 0:01:59.9]} 20... f6 {[%clk
0:01:08.2]} 21. Nf3 {[%clk 0:01:56.2]} 21... Qd7 {[%clk 0:00:46.5]} 22. Nxe4
{[%clk 0:01:48.6]} 22... dxe4 {[%clk 0:00:47.4]} 23. Nh2 {[%clk 0:01:47]} 23...
Nb5 {[%clk 0:00:41.4]} 24. Re1 {[%clk 0:01:35.2]} 24... f5 {[%clk 0:00:37.1]}
25. Nf1 {[%clk 0:01:22.4]} 25... Nxd4 {[%clk 0:00:35.7]} 26. Qh5 {[%clk
0:01:13.9]} 26... Bf7 {[%clk 0:00:32.5]} 27. Qh4 {[%clk 0:01:11.2]} 27... c5
{[%clk 0:00:29.2]} 28. Rcd1 {[%clk 0:01:06.6]} 28... Qb5 {[%clk 0:00:23]} 29. b4
{[%clk 0:01:00.1]} 29... Ne2+ {[%clk 0:00:17.4]} 30. Kh1 {[%clk 0:00:58.4]}
30... Nd4 {[%clk 0:00:16.5]} 31. Ne3 {[%clk 0:00:54.9]} 31... Qc6 {[%clk
0:00:14.4]} 32. bxc5 {[%clk 0:00:51.4]} 32... bxc5 {[%clk 0:00:15.3]} 33. Qf4
{[%clk 0:00:47.6]} 33... g5 {[%clk 0:00:15.2]} 34. Qh2 {[%clk 0:00:42.3]} 34...
h5 {[%clk 0:00:12.5]} 35. Rc1 {[%clk 0:00:38.8]} 35... f4 {[%clk 0:00:12.4]} 36.
Nc4 {[%clk 0:00:38.4]} 36... Qd5 {[%clk 0:00:07.5]} 37. h4 {[%clk 0:00:29.4]}
37... Qc6 {[%clk 0:00:03.9]} 38. hxg5 {[%clk 0:00:27.7]} 38... Bxc4 {[%clk
0:00:04.5]} 39. Rxc4 {[%clk 0:00:27.1]} 39... Qd5 {[%clk 0:00:05.1]} 40. Rec1
{[%clk 0:00:22.1]} 40... Qf7 {[%clk 0:00:03.9]} 41. Rxc5 {[%clk 0:00:19.4]}
41... Re7 {[%clk 0:00:04.4]} 42. Rc8+ {[%clk 0:00:19.5]} 42... Kg7 {[%clk
0:00:04.9]} 43. g6 {[%clk 0:00:18.3]} 43... Qxg6 {[%clk 0:00:04.7]} 44. Qxf4
{[%clk 0:00:18.5]} 44... Ne2 {[%clk 0:00:04.4]} 45. Qh4 {[%clk 0:00:15.2]} 45...
Rf7 {[%clk 0:00:03.5]} 46. R1c7 {[%clk 0:00:13.5]} 46... Nf4 {[%clk 0:00:03.4]}
47. Rxf7+ {[%clk 0:00:12.1]} 47... Qxf7 {[%clk 0:00:03.4]} 48. Qg5+ {[%clk
0:00:12.2]} 48... Ng6 {[%clk 0:00:03]} 49. Rc6 {[%clk 0:00:08.8]} 49... Qxf2
{[%clk 0:00:01.8]} 50. Qxg6+ {[%clk 0:00:08.9]} 50... Kh8 {[%clk 0:00:02]} 51.
Rc8+ {[%clk 0:00:08.3]} 1-0